fUSD/lending_fUSD_20250108
["ID","MTS","AMOUNT","RATE_DAILY","PERIOD"]
[348152035,1736356255678,-1085.66,0.0001219,2]
[348152036,1736356255688,-765.15,0.0001219,2]
[348152037,1736356255697,-500.0,0.0001219,2]
[348152038,1736356255706,-1592.55,0.00012191,2]
[348152039,1736356255716,-555.33,0.00012191,2]
[348152040,1736356255725,-150.0,0.00012199,2]
[348152041,1736356255734,-4299.05810338,0.000122,2]
[348152042,1736356255750,-38.52959662,0.000122,2]
[348152043,1736356255759,-153.70493156,0.000122,2]
[348152044,1736356255769,-716.98966793,0.000122,2]
[348152045,1736356255778,-150.0,0.00012209,2]
[348152046,1736356255789,-150.0,0.00012216,2]
[348152047,1736356255799,-150.0,0.00012218,2]
[348152048,1736356255808,-150.0,0.00012219,2]
[348152049,1736356255817,-150.0,0.00012228,2]
[348152050,1736356255827,-927.09,0.00012229,2]
[348152051,1736356255836,-933.18,0.00012229,2]
[348152052,1736356255845,-801.47,0.00012229,2]
[348152053,1736356255855,-401.86780389,0.00012229,2]
[348152054,1736356255866,-98.13219611,0.00012229,2]
[348152055,1736356255877,-1464.27,0.00012229,2]
[348152056,1736356255887,-500.0,0.00012229,2]
[348152057,1736356255899,-803.55,0.00012229,2]
[348152058,1736356255908,-150.0,0.0001223,2]
[348152059,1736356255918,-200.28146253,0.00012233,2]
[348152060,1736356255927,-93.76634139,0.00012242,2]
[348152061,1736356255938,-56.23365861,0.00012242,2]
[348152062,1736356255947,-150.0,0.00012242,2]
[348152063,1736356255956,-150.0,0.00012248,2]
[348152064,1736356255966,-150.0,0.0001225,2]
[348152065,1736356255978,-150.0,0.00012254,2]
[348152066,1736356255990,-150.0,0.00012267,2]
[348152067,1736356256001,-500.0,0.00012269,2]
[348152068,1736356256011,-500.0,0.00012269,2]
[348152069,1736356256020,-2.15108223,0.00012269,2]
[348152070,1736356256032,-366.83500018,0.00012269,2]
[348152071,1736356256047,-131.01391759,0.00012269,2]
[348152072,1736356256057,-256.6386914,0.00012269,2]
[348152073,1736356256068,-247.0713086,0.00012269,2]
[348152074,1736356256077,-321.85368376,0.00012269,2]
[348152075,1736356256091,-178.14631624,0.00012269,2]
[348152076,1736356256103,-74.493684,0.00012269,2]
[348152077,1736356256114,-637.466316,0.00012269,2]
[348152078,1736356256125,-394.02896799,0.00012269,2]
[348152079,1736356256138,-711.86103201,0.00012269,2]
[348152080,1736356256148,-716.7,0.00012269,2]
[348152081,1736356256158,-856.652496,0.00012269,2]
[348152082,1736356256168,-500.0,0.00012269,2]
[348152083,1736356256177,-922.210629,0.00012269,2]
[348152084,1736356256187,-2474.78,0.00012269,2]
[348152085,1736356256197,-500.0,0.00012269,2]
[348152086,1736356256206,-925.74877005,0.00012271,10]
[348152087,1736356256218,-1071.15166184,0.00012274,2]
[348152088,1736356256230,-19410.00001408,0.00012274,2]
[348152089,1736356256241,-5760.84832408,0.00012274,2]
[348152090,1736356256250,-20573.87167592,0.00012274,2]
[348152091,1736356256273,-164.94,0.00010585,2]
[348152092,1736356256285,-6637.05975,0.00012274,2]
[348152093,1736356256325,-4077.0,0.00012274,2]
[348152094,1736356256343,-40929.06857408,0.00012274,2]
[348152095,1736356256353,-156.99830592,0.00012274,2]
[348152096,1736356256362,-150.0,0.00012274,2]
[348152097,1736356256371,-150.0,0.00012274,2]
[348152098,1736356256380,-150.0,0.00012276,2]
[348152099,1736356256389,-4775.4360435,0.00012294,2]
[348152100,1736356256399,-150.0,0.00012295,2]
[348152101,1736356256408,-150.0,0.00012295,2]
[348152102,1736356256418,-102178.37687663,0.00012296,2]
[348152103,1736356256430,-1401.06838165,0.00012296,2]
[348152104,1736356256441,-3925.0,0.00012296,2]
[348152105,1736356256493,-400.13177241,0.00012296,2]
[348152106,1736356256504,-587.23475049,0.00012296,2]
[348152109,1736357136674,959.1177822,8e-05,2]
[348152113,1736357221533,454.93,8.219e-05,2]
[348152122,1736357361140,200.0,0.0002,120]
[348152123,1736357388195,250.0,8e-05,2]
[348152124,1736357416308,250.0,8.49e-05,2]
[348152165,1736357432027,-250.0,8.511e-05,2]
[348152166,1736357432037,-150.0,8.573e-05,2]
[348152167,1736357432046,-300.0,8.573e-05,2]
[348152168,1736357432056,-1543.07699759,8.574e-05,2]
[348152169,1736357432068,-1503.9024,8.574e-05,2]
[348152170,1736357432079,-445.400001,8.574e-05,2]
[348152171,1736357432090,-384.412,8.574e-05,2]
[348152172,1736357432101,-4701.0,8.574e-05,2]
[348152173,1736357432113,-620.30768737,8.574e-05,2]
[348152174,1736357432156,-5632.25781765,8.574e-05,2]
[348152175,1736357432169,-2231.66358123,8.574e-05,2]
[348152176,1736357436623,-718.78087629,8.574e-05,2]
[348152177,1736357436635,-11194.1169686,8.574e-05,2]
[348152178,1736357436686,-2249.6474,8.574e-05,2]
[348152179,1736357436729,-35147.17427027,8.574e-05,2]
[348152180,1736357436738,-454.93,8.583e-05,2]
[348152181,1736357436748,-164.79,8.626e-05,2]
[348152182,1736357436758,-10129.96748476,8.649e-05,2]
[348152183,1736357436772,-1004.92,8.649e-05,2]
[348152184,1736357436782,-587.42,8.772e-05,2]
[348152185,1736357436791,-874.33,8.862e-05,2]
[348152186,1736357436800,-203.39,8.868e-05,2]
[348152187,1736357436810,-214.88140689,8.94e-05,2]
[348152188,1736357436819,-1378.52,8.94e-05,2]
[348152189,1736357436828,-183.6,9.02e-05,2]
[348152190,1736357436837,-1000.0,9.02e-05,2]
[348152191,1736357436847,-5394.12716071,9.062e-05,2]
[348152192,1736357436860,-3380.97283929,9.062e-05,2]
[348152193,1736357436870,-20242.30535659,9.062e-05,2]
[348152201,1736357437840,-467.92,9.062e-05,2]
[348152202,1736357437889,-3189.77464341,9.062e-05,2]
[348152203,1736357437899,-324.15,9.062e-05,2]
[348152204,1736357437908,-6.40929722,9.098e-05,2]
[348152205,1736357437951,-1517.94070278,9.098e-05,2]
[348152206,1736357437960,-214.88140688,9.118e-05,2]
[348152207,1736357437970,-139.37289034,9.15e-05,2]
[348152208,1736357437981,-60.62710966,9.15e-05,2]
[348152209,1736357437991,-264.37289033,9.296e-05,2]
[348152211,1736357438030,-515.28705452,9.296e-05,2]
[348152213,1736357438042,-766.34341095,9.296e-05,2]
[348152215,1736357438055,-940.51,9.296e-05,2]
[348152221,1736357438111,-7513.4766442,9.296e-05,2]
[348152223,1736357438121,-499.99,9.296e-05,2]
[348152225,1736357438132,-748.23,9.296e-05,2]
[348152227,1736357438143,-214.88140688,9.296e-05,2]
[348152230,1736357438153,-279.21,9.334e-05,2]
[348152234,1736357438163,-1000.0,9.4e-05,3]
[348152238,1736357438173,-1500.0,9.43e-05,2]
[348152242,1736357438182,-255.0,9.43e-05,2]
[348152245,1736357438191,-420.0,9.43e-05,2]
[348152248,1736357438201,-700.81,9.488e-05,2]
[348152251,1736357438211,-1000.0,9.53e-05,2]
[348152254,1736357438220,-10638.72,9.53e-05,2]
[348152257,1736357438229,-803.55,9.55e-05,2]
[348152259,1736357438239,-17098.0,9.606e-05,2]
[348152261,1736357438248,-277.81,9.634e-05,2]
[348152263,1736357438257,-311.4972,9.662e-05,2]
[348152265,1736357438269,-1893.7991,9.662e-05,2]
[348152267,1736357438279,-1988.975,9.663e-05,2]
[348152269,1736357438288,-2278.7209,9.663e-05,2]
[348152271,1736357438297,-265.514,9.663e-05,2]
[348152273,1736357438306,-1671.45,9.663e-05,2]
[348152275,1736357438316,-332.3762,9.663e-05,2]
[348152277,1736357438325,-24109.68368091,9.762e-05,2]
[348152278,1736357438334,-500.0,9.763e-05,2]
[348152280,1736357438343,-511.88,9.763e-05,2]
[348152282,1736357438355,-500.0,9.763e-05,2]
[348152284,1736357438364,-500.0,9.763e-05,2]
[348152286,1736357438373,-500.0,9.763e-05,2]
[348152288,1736357438382,-500.0,9.763e-05,2]
[348152290,1736357438393,-504.96,9.763e-05,2]
[348152292,1736357438405,-500.0,9.763e-05,2]
[348152294,1736357438414,-513.17,9.763e-05,2]
[348152296,1736357438424,-500.0,9.763e-05,2]
[348152299,1736357438434,-500.0,9.763e-05,2]
[348152301,1736357438443,-500.0,9.763e-05,2]
[348152303,1736357438452,-500.0,9.763e-05,2]
[348152305,1736357438462,-500.0,9.763e-05,2]
[348152306,1736357438471,-500.0,9.763e-05,2]
[348152308,1736357438481,-500.0,9.763e-05,2]
[348152310,1736357438491,-503.08948057,9.763e-05,2]
[348152312,1736357438500,-500.0,9.763e-05,2]
[348152315,1736357438509,-500.0,9.763e-05,2]
[348152317,1736357438521,-500.0,9.763e-05,2]
[348152318,1736357438530,-500.0,9.763e-05,2]
[348152321,1736357438540,-500.0,9.763e-05,2]
[348152322,1736357438550,-500.0,9.763e-05,2]
[348152325,1736357438560,-500.0,9.763e-05,2]
[348152327,1736357438571,-500.0,9.763e-05,2]
[348152329,1736357438580,-500.0,9.763e-05,2]
[348152331,1736357438589,-500.0,9.763e-05,2]
[348152333,1736357438599,-500.0,9.763e-05,2]
[348152335,1736357438610,-500.0,9.763e-05,2]
[348152337,1736357438620,-500.0,9.763e-05,2]
[348152338,1736357438630,-500.0,9.763e-05,2]
[348152340,1736357438639,-500.0,9.763e-05,2]
[348152342,1736357438649,-500.0,9.763e-05,2]
[348152344,1736357438659,-500.0,9.763e-05,2]
[348152346,1736357438668,-500.0,9.763e-05,2]
[348152349,1736357438677,-500.0,9.763e-05,2]
[348152350,1736357438686,-500.0,9.763e-05,2]
[348152352,1736357438696,-500.0,9.763e-05,2]
[348152355,1736357438705,-500.0,9.763e-05,2]
[348152356,1736357438715,-500.0,9.763e-05,2]
[348152358,1736357438724,-500.0,9.763e-05,2]
[348152360,1736357438733,-500.0,9.763e-05,2]
[348152363,1736357438742,-500.0,9.763e-05,2]
[348152365,1736357438752,-500.0,9.763e-05,2]
[348152367,1736357438761,-500.0,9.763e-05,2]
[348152368,1736357438774,-500.0,9.763e-05,2]
[348152370,1736357438783,-500.0,9.763e-05,2]
[348152372,1736357438792,-500.0,9.763e-05,2]
[348152374,1736357438802,-500.0,9.763e-05,2]
[348152377,1736357438811,-500.0,9.763e-05,2]
[348152378,1736357438820,-500.0,9.763e-05,2]
[348152381,1736357438830,-500.0,9.763e-05,2]
[348152383,1736357438840,-500.0,9.763e-05,2]
[348152385,1736357438849,-500.0,9.763e-05,2]
[348152387,1736357438859,-500.0,9.763e-05,2]
[348152388,1736357438868,-3822.993,9.769e-05,2]
[348152390,1736357438877,-250.0,9.78e-05,2]
[348152392,1736357438886,-5148.0219,9.799e-05,2]
[348152394,1736357438895,-587.42,9.868e-05,2]
[348152396,1736357438904,-454.86671615,9.898e-05,2]
[348152398,1736357438914,-500.0,9.898e-05,2]
[348152400,1736357438923,-15442.9936,9.899e-05,2]
[348152402,1736357438933,-1457.3793,9.9e-05,2]
[348152406,1736357438942,-1080.4212,9.9e-05,2]
[348152409,1736357438952,-1112.721,9.9e-05,2]
[348152413,1736357438961,-824.0,9.973e-05,2]
[348152416,1736357438971,-428.55797089,9.973e-05,2]
[348152419,1736357438981,-151.05690371,9.973e-05,2]
[348152421,1736357438990,-500.0,9.973e-05,2]
[348152423,1736357439000,-500.0,9.987e-05,2]
[348152425,1736357439012,-500.0,9.987e-05,2]
[348152427,1736357439029,-500.0,9.987e-05,2]
[348152429,1736357439039,-500.0,9.987e-05,2]
[348152431,1736357439049,-500.0,9.987e-05,2]
[348152433,1736357439059,-500.0,9.987e-05,2]
[348152435,1736357439068,-500.0,9.987e-05,2]
[348152437,1736357439078,-500.0,9.987e-05,2]
[348152439,1736357439087,-500.0,9.987e-05,2]
[348152441,1736357439097,-500.0,9.987e-05,2]
[348152443,1736357439106,-500.0,9.987e-05,2]
[348152445,1736357439115,-500.0,9.987e-05,2]
[348152447,1736357439124,-33643.14577839,9.988e-05,2]
[348152449,1736357439138,-94288.49165373,9.988e-05,2]
[348152451,1736357439147,-500.0,9.999e-05,2]
[348152453,1736357439157,-600.27,9.999e-05,2]
[348152455,1736357439166,-780.37,9.999e-05,2]
[348152457,1736357439176,-521.75,9.999e-05,2]
[348152459,1736357439186,-500.0,9.999e-05,2]
[348152461,1736357439195,-1049.94,9.999e-05,2]
[348152463,1736357439205,-500.0,9.999e-05,2]
[348152465,1736357439214,-500.0,9.999e-05,2]
[348152467,1736357439224,-500.0,9.999e-05,2]
[348152469,1736357439234,-986.12,9.999e-05,2]
[348152471,1736357439243,-500.0,9.999e-05,2]
[348152473,1736357439252,-570.51,9.999e-05,2]
[348152475,1736357439262,-6954113.19324289,0.0001,2]
[348152479,1736357439295,-300.29999997,0.0001,2]
[348152481,1736357439307,-93787.5,0.0001,2]
[348152484,1736357439318,-998.67599932,0.0001,2]
[348152486,1736357439329,-2154.7,0.0001,2]
[348152488,1736357439340,-885.92,0.0001,2]
[348152494,1736357439385,-376.468,0.0001,2]
[348152496,1736357439400,-43008.20657133,0.0001,2]
[348152498,1736357439414,-262.61855642,0.0001,2]
[348152501,1736357439430,-23171.60859386,0.0001,2]
[348152503,1736357439442,-38089.00955996,0.0001,2]
[348152505,1736357439452,-1266.10868211,0.0001,2]
[348152507,1736357439464,-28161.8619689,0.0001,2]
[348152509,1736357439474,-1590.27147715,0.0001,2]
[348152511,1736357439485,-6157.35807171,0.0001,2]
[348152514,1736357439497,-532.5203357,0.0001,2]
[348152516,1736357439510,-1575.02108511,0.0001,2]
[348152518,1736357439526,-17710.40633558,0.0001,2]
[348152520,1736357439537,-18794.2,0.0001,2]
[348152524,1736357439563,-18760.0,0.0001,2]
[348152527,1736357439581,-767.70413075,0.0001,2]
[348152530,1736357439601,-1445.74889098,0.0001,2]
[348152563,1736357439850,-2000.0,9.5e-05,3]
[348152564,1736357439859,-500.0,9.898e-05,2]
[348152565,1736357439868,-458803.883136,0.0001,2]
[348152566,1736357439878,-11127.04296294,0.0001,2]
[348152567,1736357439890,-16174.6989996,0.0001,2]
[348152817,1736357442641,-3000.0,9.6e-05,3]
[348152820,1736357442650,-500.0,9.987e-05,2]
[348152823,1736357442659,-17876.82698672,0.0001,2]
[348152832,1736357442687,-115173.13991008,0.0001,2]
[348152836,1736357442695,-10000.0,0.0001,10]
[348152841,1736357442704,-62939.66008975,0.0001,2]
[348152846,1736357442715,-1500.83602024,0.0001,2]
[348152853,1736357442727,-535.63440855,0.0001,2]
[348152858,1736357442737,-2642.67471219,0.0001,2]
[348152863,1736357442751,-938.43087842,0.0001,2]
[348152868,1736357442762,-485.895,0.0001,2]
[348152879,1736357442789,-824.74171075,0.0001,2]
[348152887,1736357442802,-2415.41578929,0.0001,2]
[348152892,1736357442813,-1922.5,0.0001,2]
[348152899,1736357442825,-940.94,0.0001,2]
[348152903,1736357442836,-1033.50681685,0.0001,2]
[348152907,1736357442847,-1239.50863962,0.0001,2]
[348152910,1736357442858,-366.9766092,0.0001,2]
[348152913,1736357442869,-1523.99015461,0.0001,2]
[348152921,1736357442883,-9301.38663366,0.0001,2]
[348152931,1736357442906,-500.0,9.987e-05,2]
[348152934,1736357442916,-8901.99999999,0.0001,2]
[348152939,1736357442927,-3198.50104763,0.0001,2]
[348152946,1736357442939,-715.49376157,0.0001,2]
[348152953,1736357442950,-1699.368,0.0001,2]
[348152957,1736357442963,-324.15999999,0.0001,2]
[348152962,1736357442974,-471.645,0.0001,2]
[348152967,1736357442985,-432.15719278,0.0001,2]
[348152974,1736357442999,-1427.74553148,0.0001,2]
[348152979,1736357443010,-1847.745936,0.0001,2]
[348152983,1736357443024,-18153.6288962,0.0001,2]
[348152988,1736357443036,-4677.59999999,0.0001,2]
[348152995,1736357443062,-394.80075077,0.0001,2]
[348152998,1736357443073,-443.443006,0.0001,2]
[348153006,1736357443110,-941.35896,0.0001,2]
[348153010,1736357443122,-2321.82108008,0.0001,2]
[348153056,1736357443536,-525.45855045,0.0001,2]
[348153059,1736357443548,-2778.61320423,0.0001,2]
[348153061,1736357443560,-32602.26363288,0.0001,2]
[348153063,1736357443571,-51367.29670654,0.0001,2]
[348153065,1736357443582,-140132.49999999,0.0001,2]
[348153067,1736357443594,-389.76,0.0001,2]
[348153069,1736357443606,-11131.8141356,0.0001,2]
[348153072,1736357443619,-778746.01886369,0.0001,2]
[348153342,1736357445903,-1088.59112907,9.7e-05,3]
[348153345,1736357445918,-2911.40887093,9.7e-05,3]
[348153347,1736357445928,-500.0,9.987e-05,2]
[348153349,1736357445939,-500.0,9.987e-05,2]
[348153351,1736357445952,-500.0,9.999e-05,2]
[348153353,1736357445965,-500.0,9.999e-05,2]
[348153356,1736357445978,-43360.13754308,0.0001,2]
[348153359,1736357445992,-1160.87061793,0.0001,2]
[348153372,1736357446113,-4698.376644,0.0001,2]
[348153377,1736357446157,-48364.9906909,0.0001,2]
[348153380,1736357446172,-9901.3015515,0.0001,2]
[348153382,1736357446187,-22968.59998761,0.0001,2]
[348153385,1736357446200,-3562.53106137,0.0001,2]
[348153393,1736357446268,-271.56802087,9.999e-05,2]
[348153394,1736357446284,-30.72727111,0.0001,2]
[348153400,1736357446353,-5000.0,9.8e-05,3]
[348153402,1736357446363,-18566.71648827,0.0001,2]
[348153404,1736357446386,-2960.73718268,0.0001,2]
[348153406,1736357446398,-24369.52228932,0.0001,2]
[348153410,1736357446437,-44763.19488933,0.0001,2]
[348153412,1736357446452,-1003.9266902,0.0001,2]
[348153414,1736357446467,-1242.43409785,0.0001,2]
[348153416,1736357446480,-740.86401687,0.0001,2]
[348153418,1736357446492,-990.4941973,0.0001,2]
[348153420,1736357446507,-268.48160786,0.0001,2]
[348153422,1736357446523,-531.84293184,0.0001,2]
[348153425,1736357446538,-1339.5716225,0.0001,2]
[348153429,1736357446579,-260400.0000005,0.0001,2]
[348153431,1736357446593,-5326.40970015,0.0001,2]
[348153475,1736357447101,-18804.0,0.0001,2]
[348154210,1736357802459,181.54,6.945e-05,2]
[348154211,1736357923960,-450.0,0.000136,31]
[348154213,1736358055073,428.11,8.573e-05,2]
[348154214,1736358160503,564.53,8.219e-05,2]
[348154217,1736358332672,250.0,8.405e-05,2]
[348154224,1736358468383,-164.36,8.611e-05,2]
[348154225,1736358468412,-532.53,8.611e-05,2]
[348154226,1736358468439,-878.93,8.613e-05,2]
[348154227,1736358473956,-110.4,8.613e-05,2]
[348154228,1736358473977,-5819.2421619,8.619e-05,2]
[348154229,1736358474005,-1051.18,8.62e-05,2]
[348154230,1736358474030,-300.0,8.639e-05,2]
[348154231,1736358474051,-2719.1778381,8.64e-05,2]
[348154232,1736358482333,-1262.03049717,8.619e-05,2]
[348154233,1736358482356,-989.1621619,8.64e-05,2]
[348154234,1736358482379,-1000.0,8.709e-05,2]
[348154235,1736358482401,-250.0,8.764e-05,2]
[348154236,1736358482423,-1500.0,8.781e-05,2]
[348154237,1736358482445,-200.0,8.82e-05,2]
[348154238,1736358482468,-2000.0,8.874e-05,2]
[348154239,1736358482491,-168.98,8.885e-05,2]
[348154240,1736358500361,-150.0,9e-05,2]
[348154241,1736358500383,-150.0,9e-05,2]
[348154242,1736358500405,-150.0,9e-05,2]
[348154243,1736358500428,-300.0,9.065e-05,2]
[348154244,1736358500451,-1879.82734093,9.066e-05,2]
[348154245,1736358505819,-150.46,9e-05,2]
[348154246,1736358505845,-1010.54,9.06e-05,2]
[348154247,1736358505867,-2195.94765907,9.066e-05,2]
[348154248,1736358505891,-169.58,9.066e-05,2]
[348154249,1736358505916,-150.0,9.077e-05,2]
[348154250,1736358505940,-150.0,9.1e-05,2]
[348154251,1736358505964,-6173.47234093,9.11e-05,2]
[348154252,1736358512495,-10000.0,9.11e-05,2]
[348154253,1736358518719,-7726.52765907,9.11e-05,2]
[348154254,1736358520983,1010.56,9.11e-05,2]
[348154255,1736358526132,152.99,9.11e-05,2]
[348154273,1736358634627,-1109.92234093,8.764e-05,2]
[348154274,1736358635975,-3355.32192125,8.764e-05,2]
[348154275,1736358635987,-2411.6463063,8.764e-05,2]
[348154276,1736358635998,-4907.00000001,8.764e-05,2]
[348154277,1736358636010,-2323.691326,8.764e-05,2]
[348154278,1736358636021,-325.05882,8.764e-05,2]
[348154279,1736358636032,-928.4275,8.764e-05,2]
[348154280,1736358636043,-325.97063998,8.764e-05,2]
[348154281,1736358636055,-372.9696363,8.764e-05,2]
[348154282,1736358636067,-7839.99150923,8.764e-05,2]
[348154283,1736358636078,-2000.0,8.764e-05,2]
[348154284,1736358636087,-1934.54898305,8.764e-05,2]
[348154285,1736358636097,-8214.7313,9.01e-05,2]
[348154286,1736358636106,-150.0,9.154e-05,2]
[348154287,1736358636116,-150.48,9.155e-05,2]
[348154288,1736358636131,-7310.80899095,9.155e-05,2]
[348154289,1736358636140,-250.0,9.155e-05,2]
[348154290,1736358636150,-150.0,9.2e-05,2]
[348154291,1736358636162,-1004.48,9.211e-05,2]
[348154292,1736358636172,-150.0,9.231e-05,2]
[348154293,1736358636182,-987.75,9.233e-05,2]
[348154294,1736358636191,-150.0,9.3e-05,2]
[348154295,1736358636201,-150.0,9.308e-05,2]
[348154296,1736358636211,-150.0,9.333e-05,2]
[348154297,1736358636220,-150.0,9.385e-05,2]
[348154298,1736358636230,-150.0,9.4e-05,2]
[348154299,1736358636240,-150.0,9.462e-05,2]
[348154300,1736358636249,-500.0,9.479e-05,2]
[348154301,1736358636259,-150.0,9.5e-05,2]
[348154302,1736358636269,-150.0,9.5e-05,2]
[348154303,1736358636278,-152.69,9.506e-05,2]
[348154304,1736358636288,-150.0,9.538e-05,2]
[348154305,1736358636297,-150.0,9.6e-05,2]
[348154306,1736358636307,-1300.0,9.6e-05,3]
[348154307,1736358636316,-150.0,9.615e-05,2]
[348154308,1736358636327,-150.0,9.667e-05,2]
[348154309,1736358636336,-532.53,9.687e-05,2]
[348154310,1736358636345,-150.0,9.692e-05,2]
[348154311,1736358636355,-1000.0,9.699e-05,2]
[348154312,1736358636364,-265.514,9.7e-05,2]
[348154313,1736358636376,-150.0,9.7e-05,2]
[348154314,1736358636386,-5000.0,9.7e-05,2]
[348154315,1736358636396,-3940.2325,9.7e-05,2]
[348154316,1736358636405,-2700.0,9.7e-05,3]
[348154317,1736358636415,-529.0,9.702e-05,2]
[348154318,1736358636425,-150.0,9.769e-05,2]
[348154319,1736358636434,-1000.0,9.798e-05,2]
[348154320,1736358636444,-3536.24266531,9.799e-05,2]
[348154321,1736358636455,-16423.84463469,9.799e-05,2]
[348154322,1736358636466,-988.55098312,9.799e-05,2]
[348154323,1736358636476,-500.0,9.799e-05,2]
[348154324,1736358636485,-500.0,9.799e-05,2]
[348154325,1736358636495,-500.0,9.799e-05,2]
[348154326,1736358636504,-500.0,9.799e-05,2]
[348154327,1736358636514,-500.0,9.799e-05,2]
[348154328,1736358636524,-500.0,9.799e-05,2]
[348154329,1736358636534,-522.19,9.799e-05,2]
[348154330,1736358636544,-500.0,9.799e-05,2]
[348154331,1736358636553,-500.0,9.799e-05,2]
[348154332,1736358636563,-500.0,9.799e-05,2]
[348154333,1736358636572,-500.0,9.799e-05,2]
[348154334,1736358636583,-500.0,9.799e-05,2]
[348154335,1736358636592,-500.0,9.799e-05,2]
[348154336,1736358636602,-500.0,9.799e-05,2]
[348154337,1736358636611,-502.44896581,9.799e-05,2]
[348154338,1736358636623,-500.0,9.799e-05,2]
[348154339,1736358636633,-500.0,9.799e-05,2]
[348154340,1736358636642,-500.0,9.799e-05,2]
[348154341,1736358636652,-500.0,9.799e-05,2]
[348154342,1736358636661,-500.0,9.799e-05,2]
[348154343,1736358636671,-500.0,9.799e-05,2]
[348154344,1736358636680,-500.0,9.799e-05,2]
[348154345,1736358636690,-500.0,9.799e-05,2]
[348154346,1736358636699,-504.60982216,9.799e-05,2]
[348154347,1736358636709,-500.0,9.799e-05,2]
[348154348,1736358636719,-500.0,9.799e-05,2]
[348154349,1736358636729,-500.0,9.799e-05,2]
[348154350,1736358636738,-500.0,9.799e-05,2]
[348154351,1736358636748,-555.04,9.799e-05,2]
[348154352,1736358636757,-500.0,9.799e-05,2]
[348154353,1736358636767,-500.0,9.799e-05,2]
[348154354,1736358636777,-500.0,9.799e-05,2]
[348154355,1736358636789,-500.0,9.799e-05,2]
[348154356,1736358636799,-506.53057063,9.799e-05,2]
[348154357,1736358636809,-500.0,9.799e-05,2]
[348154358,1736358636818,-500.0,9.799e-05,2]
[348154359,1736358636829,-584.30927998,9.799e-05,2]
[348154360,1736358636839,-500.0,9.799e-05,2]
[348154361,1736358636849,-523.16,9.799e-05,2]
[348154362,1736358636859,-509.12924721,9.799e-05,2]
[348154363,1736358636869,-500.0,9.799e-05,2]
[348154364,1736358636880,-571.52,9.799e-05,2]
[348154365,1736358636890,-500.0,9.799e-05,2]
[348154366,1736358636899,-500.0,9.799e-05,2]
[348154367,1736358636908,-500.0,9.799e-05,2]
[348154368,1736358636918,-500.0,9.799e-05,2]
[348154369,1736358636927,-567.11,9.799e-05,2]
[348154370,1736358636936,-737.87,9.799e-05,2]
[348154371,1736358636946,-500.0,9.799e-05,2]
[348154372,1736358636956,-500.0,9.799e-05,2]
[348154373,1736358636965,-504.22003714,9.799e-05,2]
[348154374,1736358636974,-500.0,9.799e-05,2]
[348154375,1736358636984,-500.0,9.799e-05,2]
[348154376,1736358636993,-500.0,9.799e-05,2]
[348154377,1736358637003,-500.0,9.799e-05,2]
[348154378,1736358637012,-607.18,9.799e-05,2]
[348154379,1736358637022,-500.0,9.799e-05,2]
[348154380,1736358637032,-500.0,9.799e-05,2]
[348154381,1736358637041,-500.0,9.799e-05,2]
[348154382,1736358637053,-500.0,9.799e-05,2]
[348154383,1736358637063,-500.0,9.799e-05,2]
[348154384,1736358637073,-500.0,9.799e-05,2]
[348154385,1736358637279,-500.0,9.799e-05,2]
[348154386,1736358637289,-500.0,9.799e-05,2]
[348154387,1736358637299,-500.0,9.799e-05,2]
[348154388,1736358637309,-238.05661739,9.799e-05,2]
[348154389,1736358637319,-500.0,9.799e-05,2]
[348154390,1736358637329,-500.0,9.799e-05,2]
[348154391,1736358637338,-500.0,9.799e-05,2]
[348154392,1736358637348,-670.8,9.799e-05,2]
[348154393,1736358637357,-500.0,9.799e-05,2]
[348154394,1736358637367,-500.0,9.799e-05,2]
[348154395,1736358637378,-500.0,9.799e-05,2]
[348154396,1736358637387,-500.0,9.799e-05,2]
[348154397,1736358637397,-500.0,9.799e-05,2]
[348154398,1736358637407,-500.0,9.799e-05,2]